fUSD/lending_fUSD_20250417
["ID","MTS","AMOUNT","RATE_DAILY","PERIOD"]
[358270897,1744887031911,-1000.0,0.00052,120]
[358270898,1744887031922,-12785.08,0.00052,2]
[358270899,1744887031932,-21017.33,0.00052,2]
[358270900,1744887031943,-1399.51,0.00052,5]
[358270901,1744887031953,-223.26,0.00052054,120]
[358270902,1744887031963,-223.3483693,0.00053424,120]
[358270903,1744887031973,-573.0,0.00054304,10]
[358270904,1744887031983,-2700.0,0.00055,30]
[358270905,1744887031992,-1000.0,0.00055328,9]
[358270906,1744887032002,-1869.10579952,0.00055328,10]
[358270907,1744887032021,-363.29989317,0.00055328,10]
[358270908,1744887032032,-267.59430731,0.00055328,10]
[358270909,1744887032042,-64.99081903,0.0006,120]
[358270969,1744887037836,-588.62239321,0.0006,120]
[358270970,1744887037891,-313.18161853,0.0006,120]
[358270971,1744887037901,-150.0,0.0006,120]
[358270972,1744887037910,-200.0,0.0006952,7]
[358270973,1744887037919,-9999.99999999,0.0008,30]
[358270974,1744887037929,-156.78,0.00084614,2]
[358270975,1744887037939,-302.86665038,0.0008767,19]
[358270976,1744887038051,-306.51167655,0.0008767,19]
[358270977,1744887038061,-283.73,0.00087671,30]
[358270978,1744887038072,-60.35022289,0.00087671,35]
[358270979,1744887038100,150.0,0.00027,120]
[358270995,1744887038623,150.0,0.000323,120]
[358270996,1744887038703,150.0,0.000376,120]
[358270997,1744887038998,150.0,0.000429,120]
[358271004,1744887039891,-150.0,0.000482,120]
[358271005,1744887039901,-198.28051,0.000535,120]
[358271006,1744887039911,-776.95349225,0.00087671,35]
[358271007,1744887039922,-156.78,0.00087686,2]
[358271008,1744887039931,-156.78,0.00090758,2]
[358271009,1744887039941,-156.78,0.00093831,2]
[358271010,1744887039951,-365.63,0.00096487,30]
[358271011,1744887039960,-156.78,0.00096903,2]
[358271012,1744887039971,-156.78,0.00099976,2]
[358271013,1744887039980,-2738.52790571,0.001,30]
[358271014,1744887040205,-514.3551702,0.001,30]
[358271015,1744887040215,-500.0,0.00101954,30]
[358271016,1744887040224,-200.0,0.00101954,30]
[358271017,1744887040233,-156.78,0.00103048,2]
[358271018,1744887040242,-156.78,0.0010612,2]
[358271019,1744887040250,-156.78,0.00109193,2]
[358271020,1744887040258,-156.78,0.00112265,2]
[358271021,1744887040267,-160.9,0.00113274,120]
[358271022,1744887040277,-156.78,0.00115338,2]
[358271023,1744887040287,-150.0,0.0011841,120]
[358271024,1744887040298,-150.0,0.0011841,120]
[358271025,1744887040308,-200.0,0.0011841,120]
[358271026,1744887040318,-150.0,0.0011841,120]
[358271027,1744887040327,-150.0,0.0011841,120]
[358271028,1744887040337,-200.0,0.0011841,120]
[358271029,1744887040346,-150.0,0.0011841,120]
[358271030,1744887040356,-150.0,0.0011841,120]
[358271031,1744887040367,-150.0,0.0011841,120]
[358271032,1744887040376,-150.0,0.0011841,120]
[358271033,1744887040385,-150.0,0.0011841,120]
[358271035,1744887040395,-150.0,0.0011841,120]
[358271037,1744887040404,-150.0,0.0011841,120]
[358271039,1744887040414,-150.0,0.0011841,120]
[358271041,1744887040424,-250.0,0.0011841,120]
[358271043,1744887040434,-150.0,0.0011841,120]
[358271044,1744887040443,-150.0,0.0011841,120]
[358271047,1744887040453,-200.0,0.0011841,120]
[358271048,1744887040463,-150.0,0.0011841,120]
[358271049,1744887040473,-150.0,0.0011841,120]
[358271051,1744887040482,-215.56486319,0.0011841,120]
[358271052,1744887040492,-150.0,0.0011841,120]
[358271053,1744887040501,-156.78,0.0011841,2]
[358271054,1744887040511,-156.78,0.00121482,2]
[358271056,1744887040520,-156.78,0.00124555,2]
[358271058,1744887040530,-156.78,0.00127627,2]
[358271059,1744887040539,-40.33541597,0.00130382,2]
[358271060,1744887040551,-129.66458403,0.00130382,2]
[358271061,1744887040561,-150.0,0.00133871,120]
[358271062,1744887040570,-183.68092461,0.00133903,20]
[358271063,1744887040580,-365.63,0.00135081,30]
[358271064,1744887040589,-150.0,0.0013524,120]
[358271065,1744887040599,-160.9,0.00136096,120]
[358271066,1744887040612,-125.99861419,0.00136789,120]
[358271074,1744887042779,-74.00138581,0.00136789,120]
[358271075,1744887042789,-154.09431904,0.00136886,15]
[358271076,1744887042799,-500.0,0.00136886,60]
[358271077,1744887042808,-180.31179515,0.00136986,120]
[358271078,1744887042885,-319.68820485,0.00136986,120]
[358271079,1744887042894,-162.36483299,0.00137595,14]
[358271080,1744887042904,-161.53439543,0.00137595,120]
[358271081,1744887042913,-154.04077659,0.00137595,120]
[358271082,1744887042923,-410.69189255,0.00137595,120]
[358271083,1744887042933,-580.35169404,0.00137595,30]
[358271084,1744887042944,-116.77736079,0.00137595,120]
[358271085,1744887043960,-39.5298568,0.00137595,120]
[358271086,1744887043969,-153.31469753,0.00137595,120]
[358271087,1744887043979,-162.55590316,0.00137595,120]
[358271088,1744887043988,-320.03033813,0.00137595,120]
[358271089,1744887043997,-295.99920458,0.00137595,2]
[358271090,1744887044012,-204.00079542,0.00137595,2]
[358271091,1744887044021,-153.25164585,0.00138586,120]
[358271092,1744887044030,-500.0,0.00138586,15]
[358271093,1744887044040,-500.0,0.00138586,120]
[358271094,1744887044049,-10427.52279438,0.00138622,120]
[358271095,1744887044059,-500.0,0.00138624,120]
[358271096,1744887044069,-150.0,0.00138624,120]
[358271097,1744887044079,-150.0,0.00138624,120]
[358271098,1744887044088,-200.0,0.00138624,120]
[358271099,1744887044098,-150.059592,0.00138624,120]
[358271100,1744887044107,-150.0,0.00138624,120]
[358271101,1744887044118,-150.0,0.00138624,120]
[358271102,1744887044128,-200.0,0.00138624,120]
[358271103,1744887044137,-150.0,0.00138624,2]
[358271104,1744887044147,-150.0,0.00138624,120]
[358271105,1744887044157,-150.0,0.00138624,120]
[358271106,1744887044166,-200.0,0.00138624,120]
[358271107,1744887044176,-132.70606892,0.00138624,120]
[358271108,1744887044187,-21.81153025,0.00138624,120]
[358271109,1744887044196,-150.0,0.00138624,120]
[358271110,1744887044205,-150.0,0.00138624,120]
[358271111,1744887044215,-200.0,0.00138624,120]
[358271112,1744887044224,-150.0,0.00138624,120]
[358271113,1744887044233,-460.0,0.00139507,120]
[358271114,1744887044242,-339.662,0.00139516,120]
[358271115,1744887044251,-6725.9437,0.00139526,120]
[358271116,1744887044260,-2948.38573885,0.00139526,120]
[358271117,1744887044271,-2051.61426115,0.00139526,120]
[358271118,1744887044280,-8061.80150598,0.00139606,22]
[358271119,1744887044289,-4242.29059378,0.00139616,15]
[358271120,1744887044299,-48955.33764585,0.00139616,22]
[358271121,1744887044312,-5557.7396028,0.00139616,22]
[358271122,1744887044377,-42228.54082315,0.00139616,22]
[358271123,1744887044387,-8311.55700087,0.00139616,20]
[358271124,1744887044398,-500.0,0.00139625,7]
[358271125,1744887044407,-200.0,0.00139625,7]
[358271126,1744887044416,-168.64949877,0.00139626,120]
[358271127,1744887044426,-5242.9812,0.00139626,120]
[358271128,1744887044435,-278952.5779506,0.00139626,120]
[358271135,1744887045932,-3997.52131187,0.00139516,15]
[358271136,1744887045944,-1825.28643215,0.00139516,15]
[358271137,1744887045954,-1631.43199682,0.00139626,120]
[358271138,1744887045966,-8191.52885362,0.00139626,120]
[358271139,1744887046039,-3422.00489823,0.00139626,120]
[358271140,1744887046051,-1434.58455959,0.00139626,120]
[358271141,1744887046063,-534.58703292,0.00139626,120]
[358271142,1744887046092,-1471.85055798,0.00139626,120]
[358271143,1744887145489,250.0,0.00017,2]
[358271144,1744887146566,300.0,0.00019,2]
[358271145,1744887147650,350.0,0.00021,2]
[358271151,1744887950107,-296.06448525,0.00043835,120]
[358271152,1744888029133,-151.0,0.00032,120]
[358271153,1744888029155,-122.9410502,0.00043835,120]
[358271154,1744888047093,-152.0,0.0004,120]
[358271155,1744888047118,-1146.40446455,0.00043835,120]
[358271156,1744888047141,-250.0,0.00043868,2]
[358271157,1744888047163,-250.0,0.00043947,2]
[358271158,1744888047185,-550.0,0.00043999,5]
[358271159,1744888047207,-90.05265581,0.00043999,4]
[358271160,1744888049101,-371.94734419,0.00043999,4]
[358271161,1744888049123,-607.04552598,0.00044,10]
[358271163,1744888144487,-226.07113533,0.00044,30]
[358271164,1744888144523,-364.0,0.000465,120]
[358271165,1744888144557,-205.44953294,0.00048799,84]
[358271166,1744888144600,-297.298,0.00048799,84]
[358271167,1744888144635,-272.73586381,0.00048799,120]
[358271168,1744888144668,-198634.44546792,0.000488,120]
[358271171,1744888231912,-150.0,0.000439,2]
[358271172,1744888231922,-2689.620629,0.0004399,2]
[358271173,1744888231932,-4412.56554879,0.00044,10]
[358271174,1744888231942,-379.31571903,0.00044,2]
[358271175,1744888231952,-16331.47549586,0.00044,10]
[358271176,1744888232001,-535.59065572,0.00044,10]
[358271177,1744888232110,-32616.01685392,0.00044,10]
[358271178,1744888232165,-1255.9169945,0.00044,10]
[358271179,1744888232175,-250.0,0.00048219,2]
[358271180,1744888232185,-250.0,0.000484,2]
[358271181,1744888232194,-727.22778263,0.000487,8]
[358271182,1744888232204,-727.22778262,0.000487,8]
[358271183,1744888232215,-500.0,0.000487,2]
[358271184,1744888232224,-37244.236,0.000487,2]
[358271186,1744888232234,-500.0,0.00048773,2]
[358271188,1744888232244,-500.0,0.00048773,10]
[358271189,1744888232253,-500.0,0.00048773,2]
[358271191,1744888232263,-1430.52,0.0004879,30]
[358271193,1744888232273,-500.0,0.00048799,7]
[358271195,1744888232281,-500.0,0.00048799,7]
[358271197,1744888232291,-500.0,0.00048799,7]
[358271199,1744888232300,-500.0,0.00048799,7]
[358271201,1744888232309,-592.97861623,0.00048799,7]
[358271203,1744888232319,-9653.81,0.00048799,2]
[358271205,1744888232327,-31294.09061832,0.000488,120]
[358271245,1744888238112,-3806.803,0.000488,120]
[358271246,1744888238164,-4070.42433121,0.000488,120]
[358271247,1744888238271,-442.20931429,0.000488,120]
[358271267,1744888244079,-7903.66140577,0.000488,120]
[358271268,1744888244094,-507.93674988,0.000488,120]
[358271269,1744888244124,-64122.04991396,0.000488,120]
[358271270,1744888244134,-5327.45511474,0.000493,15]
[358271271,1744888244144,-3818.06153442,0.000494,15]
[358271272,1744888244154,-166.48550268,0.00049545,28]
[358271273,1744888244164,-150.0,0.000497,30]
[358271274,1744888244173,-150.0,0.000497,30]
[358271275,1744888244182,-200.0,0.000497,30]
[358271276,1744888244192,-150.0,0.000497,30]
[358271277,1744888244201,-150.0,0.000497,30]
[358271278,1744888244210,-200.0,0.000497,30]
[358271279,1744888244220,-500.0,0.000497,30]
[358271280,1744888244231,-500.0,0.000497,30]
[358271281,1744888244240,-500.0,0.000497,30]
[358271282,1744888244250,-500.0,0.000497,30]
[358271283,1744888244259,-508.0,0.000497,30]
[358271284,1744888244268,-500.0,0.0004984,10]
[358271285,1744888244277,-1069.49349212,0.00050385,22]
[358271286,1744888244287,-1000.58,0.00051362,30]
[358271287,1744888244296,-5122.67044113,0.00051363,3]
[358271288,1744888244305,-150.0,0.00051385,30]
[358271289,1744888244314,-150.0,0.00051385,30]
[358271290,1744888244323,-150.0,0.00051385,30]
[358271291,1744888244333,-150.0,0.00051385,30]
[358271292,1744888244342,-150.0,0.00051385,30]
[358271293,1744888244351,-150.0,0.00051385,30]
[358271294,1744888244360,-150.0,0.00051385,30]
[358271295,1744888244370,-150.0,0.00051385,30]
[358271296,1744888244379,-150.0,0.00051385,30]
[358271297,1744888244390,-150.0,0.00051385,30]
[358271298,1744888244399,-150.0,0.00051385,30]
[358271299,1744888244408,-150.0,0.00051385,30]
[358271300,1744888244417,-194.5,0.00051385,30]
[358271301,1744888244427,-1000.0,0.00052,120]
[358271302,1744888244436,-150.0,0.000524,2]
[358271303,1744888244445,-1413.51,0.00052562,120]
[358271304,1744888244454,-1000.0,0.0005259,120]
[358271305,1744888244463,-331.01334453,0.00054252,2]
[358271306,1744888244473,-588.08568563,0.00054252,10]
[358271307,1744888244483,-509.27244081,0.00054252,2]
[358271308,1744888244492,-284.42382,0.00055,120]
[358271309,1744888244501,-1000.0,0.00055319,15]
[358271310,1744888244511,-5122.67044113,0.00055415,4]
[358271311,1744888244520,-10245.3408823,0.00055425,4]
[358271312,1744888244529,-5122.67044113,0.00055434,4]
[358271313,1744888244539,-12500.0,0.00055435,10]
[358271314,1744888244548,-5122.67044113,0.00055441,4]
[358271315,1744888244558,-5122.67044113,0.00055442,4]
[358271316,1744888244570,-12500.0,0.00055444,10]
[358271317,1744888244579,-5122.67044113,0.0005545,4]
[358271318,1744888244588,-5122.67044113,0.00055451,4]
[358271319,1744888244598,-12500.0,0.00055452,10]
[358271320,1744888244607,-5122.67044113,0.00055459,4]
[358271321,1744888244617,-5122.67044113,0.0005546,4]
[358271322,1744888244626,-12500.0,0.00055461,10]
[358271323,1744888244635,-5122.67044113,0.00055469,4]
[358271324,1744888244644,-12500.0,0.0005547,10]
[358271325,1744888244654,-299.03713602,0.00055473,15]
[358271326,1744888244663,-12500.0,0.00055479,10]
[358271327,1744888244673,-300.0,0.000558,120]
[358271328,1744888244683,-1413.51,0.00059132,120]
[358271329,1744888244693,-1000.0,0.00059164,120]
[358271330,1744888244702,-192.93,0.000595,7]
[358271331,1744888244711,-500.0,0.0005989,120]
[358271332,1744888244720,-500.0,0.0005989,120]
[358271333,1744888244731,-500.0,0.0005989,120]
[358271334,1744888244740,-527.43818569,0.0005989,120]
[358271335,1744888244749,-169.71535396,0.0005989,120]
[358271336,1744888244759,-150.0,0.0006,120]
[358271337,1744888244768,-150.0,0.00060274,120]
[358271338,1744888244778,-150.0,0.00060274,120]
[358271339,1744888244787,-150.0,0.00060274,120]
[358271340,1744888244796,-150.0,0.00060274,120]
[358271341,1744888244805,-150.0,0.00060274,120]
[358271342,1744888244815,-150.0,0.00060274,120]
[358271343,1744888244824,-250.0,0.00060274,120]
[358271344,1744888244835,-150.0,0.00060274,120]
[358271345,1744888244845,-150.0,0.00060274,120]
[358271346,1744888244854,-150.0,0.00060274,120]
[358271347,1744888244864,-200.0,0.00060274,120]
[358271348,1744888244874,-150.0,0.00060274,120]
[358271349,1744888244884,-150.0,0.00060274,120]
[358271350,1744888244893,-200.0,0.00060274,120]
[358271351,1744888244903,-150.0,0.00060274,120]
[358271352,1744888244912,-150.0,0.00060274,120]
[358271353,1744888244922,-200.0,0.00060274,120]
[358271354,1744888244932,-199.38141135,0.00060274,120]
[358271355,1744888244941,-194.75129471,0.00060274,120]
[358271356,1744888244951,-150.0,0.00060274,120]
[358271357,1744888244960,-150.0,0.00060274,120]
[358271358,1744888244970,-150.0,0.00060274,120]
[358271359,1744888244982,-200.0,0.00060274,120]
[358271360,1744888244991,-500.0,0.00060274,120]
[358271361,1744888245002,-500.0,0.00060274,120]
[358271362,1744888245013,-500.40013335,0.00060274,120]
[358271363,1744888245023,-5122.67044113,0.00064079,4]
[358271364,1744888245033,-297.299,0.00064099,120]
[358271365,1744888245042,-1413.51,0.00065702,120]
[358271366,1744888245052,-1000.0,0.00065737,120]
[358271367,1744888245061,-172.12,0.00068617,2]
[358271368,1744888245071,-1413.51,0.00072272,120]
[358271369,1744888245086,-1000.0,0.00072311,120]
[358271370,1744888245095,-300.17,0.00074,14]
[358271371,1744888245105,-5122.67044113,0.00076326,5]
[358271372,1744888245114,-392.14,0.00076336,120]
[358271373,1744888245125,-172.12,0.0007722,2]
[358271374,1744888245134,-1413.51,0.00078842,120]
[358271375,1744888245144,-1000.0,0.00078885,120]
[358271376,1744888245153,-297.298,0.000794,120]
[358271377,1744888245162,-392.14,0.00081227,120]
[358271378,1744888245171,-500.0,0.00082192,15]
[358271379,1744888245180,-500.0,0.00082192,15]
[358271380,1744888245190,-500.0,0.00082192,15]
[358271381,1744888245199,-500.0,0.00082192,15]
[358271382,1744888245208,-500.0,0.00082192,15]
[358271383,1744888245219,-500.0,0.00082192,15]
[358271384,1744888245230,-500.0,0.00082192,15]
[358271385,1744888245240,-500.0,0.00082192,15]
[358271386,1744888245250,-500.0,0.00082192,15]
[358271387,1744888245259,-497.37135481,0.00082192,15]
[358271388,1744888245269,-172.12,0.00085823,2]
[358271389,1744888245279,-392.14,0.00086117,120]
[358271390,1744888245288,-160.24,0.00086981,120]
[358271391,1744888245298,-392.14,0.00091008,120]
[358271392,1744888245307,-172.12,0.00094425,2]
[358271393,1744888245317,-297.299,0.000947,120]
[358271394,1744888245326,-392.14,0.00095898,120]
[358271395,1744888245336,-392.14,0.00100788,120]
[358271396,1744888245346,-172.12,0.00103028,2]
[358271397,1744888245355,-392.14,0.00105679,120]
[358271398,1744888245463,-297.298,0.0011,120]
[358271399,1744888245475,-392.14,0.00110569,120]
[358271400,1744888245485,-172.12,0.00111631,2]
[358271401,1744888245494,-392.14,0.0011546,120]
[358271402,1744888245504,-392.14,0.0012035,120]
[358271403,1744888245513,-3000.0,0.00124,120]
[358271404,1744888245523,-392.14,0.0012524,120]
[358271405,1744888245533,-5122.67044113,0.00127392,9]
[358271406,1744888245542,-107576.079264,0.00127413,9]
[358271407,1744888245551,-3078.35444455,0.00127413,9]
[358271408,1744888245561,-5122.67044113,0.00127422,9]
[358271409,1744888245571,-20490.6817645,0.00127423,9]
[358271410,1744888245581,-4309.69622237,0.00127423,9]
[358271411,1744888245591,-500.0,0.00127973,60]
[358271412,1744888245600,-168.64949877,0.00130031,120]
[358271413,1744888245610,-392.14,0.00130131,120]
[358271414,1744888245621,-3818.06153435,0.00131678,15]
[358271415,1744888245631,-5327.45511474,0.00132633,15]
[358271416,1744888245640,-392.14,0.00135021,120]
[358271417,1744888245650,-615.67088891,0.00139586,20]
[358271418,1744888245660,-1231.34177782,0.00139606,20]
[358271419,1744888245670,-200.0,0.00139626,60]
[358271420,1744888245680,-200.0,0.00139626,120]
[358271421,1744888245689,-207.4,0.00139626,120]
[358271422,1744888245698,-215.0738,0.00139626,120]
[358271423,1744888245708,-223.0315306,0.00139626,120]
[358271424,1744888245718,-231.28369723,0.00139626,120]
[358271425,1744888245728,-239.84119403,0.00139626,120]
[358271426,1744888245738,-248.71531821,0.00139626,120]
[358271427,1744888245747,-257.91778498,0.00139626,120]
[358271428,1744888245756,-267.46074303,0.00139626,120]
[358271429,1744888245765,-277.35679052,0.00139626,120]
[358271430,1744888245774,-287.61899177,0.00139626,120]
[358271431,1744888245783,-298.26089446,0.00139626,120]
[358271433,1744888245792,-309.29654756,0.00139626,120]
[358271434,1744888245801,-320.74051982,0.00139626,120]
[358271435,1744888245811,-332.60791905,0.00139626,120]
[358271436,1744888245820,-344.91441206,0.00139626,120]
[358271437,1744888245829,-357.6762453,0.00139626,120]
[358271439,1744888245839,-370.91026638,0.00139626,120]
[358271440,1744888245848,-384.63394623,0.00139626,120]
[358271441,1744888245857,-407.4,0.00139626,120]
[358271442,1744888245866,-151.0,0.00139726,120]
[358271443,1744888245875,-161.458064,0.00139726,120]
[358271444,1744888245885,-151.0,0.00139726,120]
[358271445,1744888245894,-286.062366,0.00139726,120]
[358271446,1744888245904,-152.82122,0.00139726,90]
[358271447,1744888245914,-151.0,0.00139726,120]
[358271448,1744888245923,-151.0,0.00139726,120]
[358271449,1744888245932,-151.0,0.00139726,120]
[358271450,1744888245942,-157.952697,0.00139726,120]
[358271452,1744888245952,-151.0,0.00139726,120]
[358271454,1744888245962,-151.0,0.00139726,120]
[358271456,1744888245972,-155.459609,0.00139726,120]
[358271457,1744888245982,-947.672558,0.00139726,120]
[358271459,1744888245992,-151.0,0.00139726,120]
[358271461,1744888246001,-151.0,0.00139726,120]
[358271462,1744888246010,-151.0,0.00139726,120]
[358271463,1744888246020,-151.0,0.00139726,120]
[358271464,1744888246029,-151.0,0.00139726,120]
[358271465,1744888246038,-152.495799,0.00139726,120]
[358271466,1744888246047,-151.0,0.00139726,120]
[358271467,1744888246056,-151.0,0.00139726,120]
[358271468,1744888246066,-151.0,0.00139726,120]
[358271469,1744888246075,-151.0,0.00139726,120]
[358271470,1744888246086,-151.0,0.00139726,120]
[358271471,1744888246095,-151.0,0.00139726,120]
[358271472,1744888246105,-196.356264,0.00139726,120]
[358271473,1744888246115,-210.451246,0.00139726,120]
[358271474,1744888246124,-151.0,0.00139726,120]
[358271475,1744888246134,-151.0,0.00139726,120]
[358271476,1744888246143,-151.0,0.00139726,120]
[358271477,1744888246153,-151.0,0.00139726,120]
[358271478,1744888246164,-151.0,0.00139726,120]
[358271479,1744888246173,-151.0,0.00139726,120]
[358271480,1744888246182,-151.0,0.00139726,120]
[358271481,1744888246191,-162.802278,0.00139726,120]
[358271482,1744888246200,-151.0,0.00139726,120]
[358271483,1744888246210,-151.0,0.00139726,120]
[358271484,1744888246219,-151.0,0.00139726,120]
[358271485,1744888246229,-151.0,0.00139726,120]
[358271486,1744888246238,-151.0,0.00139726,120]
[358271487,1744888246247,-151.0,0.00139726,120]
[358271488,1744888246256,-151.0,0.00139726,120]
[358271489,1744888246264,-151.0,0.00139726,120]
[358271490,1744888246273,-151.0,0.00139726,120]
[358271491,1744888246282,-151.0,0.00139726,120]
[358271492,1744888246291,-151.0,0.00139726,120]
[358271493,1744888246300,-151.0,0.00139726,120]
[358271494,1744888246308,-151.0,0.00139726,120]
[358271495,1744888246317,-151.0,0.00139726,120]
[358271496,1744888246326,-151.0,0.00139726,120]
[358271497,1744888246334,-155.083901,0.00139726,120]
[358271498,1744888246343,-151.0,0.00139726,120]
[358271499,1744888246352,-151.0,0.00139726,120]
[358271500,1744888246361,-151.0,0.00139726,120]
[358271501,1744888246370,-157.503326,0.00139726,120]
[358271502,1744888246379,-180.05047,0.00139726,120]
[358271503,1744888246388,-180.05047,0.00139726,120]
[358271504,1744888246398,-180.05047,0.00139726,120]
[358271505,1744888246407,-180.05047,0.00139726,120]
[358271506,1744888246416,-180.05047,0.00139726,120]
[358271508,1744888246425,-180.05047,0.00139726,120]
[358271510,1744888246434,-180.05047,0.00139726,120]
[358271512,1744888246444,-180.05047,0.00139726,120]
[358271513,1744888246453,-180.05047,0.00139726,120]
[358271514,1744888246462,-180.05047,0.00139726,120]
[358271515,1744888246471,-180.05047,0.00139726,120]
[358271517,1744888246481,-180.05047,0.00139726,120]
[358271519,1744888246490,-180.05047,0.00139726,120]
[358271521,1744888246499,-180.05047,0.00139726,120]
[358271523,1744888246508,-180.05047,0.00139726,120]
[358271525,1744888246518,-180.05047,0.00139726,120]
[358271527,1744888246527,-180.05047,0.00139726,120]
[358271529,1744888246537,-180.05047,0.00139726,120]
[358271531,1744888246546,-180.05047,0.00139726,120]
[358271533,1744888246555,-180.05047,0.00139726,120]
[358271535,1744888246565,-151.0,0.00139726,120]
[358271537,1744888246576,-151.0,0.00139726,120]
[358271539,1744888246585,-151.0,0.00139726,120]
[358271541,1744888246594,-151.0,0.00139726,120]
[358271542,1744888246603,-151.0,0.00139726,120]
[358271544,1744888246612,-151.0,0.00139726,120]
[358271546,1744888246622,-151.0,0.00139726,120]
[358271548,1744888246631,-247.67246,0.00139726,120]
[358271550,1744888246640,-151.0,0.00139726,120]
[358271552,1744888246650,-151.0,0.00139726,120]
[358271554,1744888246659,-212.33971,0.00139726,120]
[358271556,1744888246669,-230.514899,0.00139726,120]
[358271558,1744888246679,-230.514899,0.00139726,120]
[358271560,1744888246689,-230.514899,0.00139726,120]
[358271562,1744888246698,-230.514899,0.00139726,120]
[358271564,1744888246708,-230.514899,0.00139726,120]
[358271566,1744888246717,-230.514899,0.00139726,120]
[358271568,1744888246726,-230.514899,0.00139726,120]
[358271570,1744888246735,-230.514899,0.00139726,120]
[358271572,1744888246743,-230.514899,0.00139726,120]
[358271574,1744888246752,-230.514899,0.00139726,120]
[358271575,1744888246762,-230.514899,0.00139726,120]
[358271577,1744888246771,-230.514899,0.00139726,120]
[358271578,1744888246780,-230.514899,0.00139726,120]
[358271580,1744888246790,-230.514899,0.00139726,120]
[358271582,1744888246800,-230.514899,0.00139726,120]
[358271584,1744888246809,-230.514899,0.00139726,120]
[358271586,1744888246819,-230.514899,0.00139726,120]
[358271588,1744888246829,-230.514899,0.00139726,120]
[358271590,1744888246839,-230.514899,0.00139726,120]
[358271592,1744888246848,-230.514899,0.00139726,120]
[358271594,1744888246857,-166.253305,0.00139726,120]
[358271596,1744888246867,-151.0,0.00139726,120]
[358271597,1744888246876,-151.0,0.00139726,120]
[358271599,1744888246886,-151.0,0.00139726,120]
[358271601,1744888246895,-151.0,0.00139726,120]
[358271603,1744888246904,-151.0,0.00139726,120]
[358271605,1744888246914,-151.0,0.00139726,120]
[358271607,1744888246924,-151.0,0.00139726,120]
[358271609,1744888246934,-151.0,0.00139726,120]
[358271611,1744888246944,-205.482242,0.00139726,120]
[358271613,1744888246953,-151.0,0.00139726,120]
[358271615,1744888246963,-151.0,0.00139726,120]
[358271617,1744888246973,-151.0,0.00139726,120]
[358271619,1744888246982,-151.0,0.00139726,120]
[358271621,1744888246991,-151.0,0.00139726,120]
[358271623,1744888247000,-151.0,0.00139726,120]
[358271625,1744888247009,-151.0,0.00139726,120]
[358271627,1744888247019,-151.0,0.00139726,120]
[358271629,1744888247028,-151.0,0.00139726,120]
[358271631,1744888247038,-151.0,0.00139726,120]
[358271633,1744888247047,-151.0,0.00139726,120]
[358271635,1744888247056,-197.88,0.00139726,120]
[358271637,1744888247066,-151.0,0.00139726,120]
[358271639,1744888247075,-151.0,0.00139726,120]
[358271641,1744888247086,-153.062666,0.00139726,120]
[358271643,1744888247095,-151.0,0.00139726,120]
[358271645,1744888247104,-151.0,0.00139726,120]
[358271647,1744888247113,-151.0,0.00139726,120]
[358271649,1744888247125,-151.0,0.00139726,120]
[358271651,1744888247133,-151.0,0.00139726,120]